bitfinex/quotes_BTCUSD_20240617
["timestamp","ask_amount","ask_price","bid_price","bid_amount"]
[1718608662773,0.61594638,66026.0,66025.0,1.55888169]
[1718608662986,0.61594638,66026.0,66025.0,1.55924588]
[1718608663263,0.61594638,66026.0,66025.0,1.86216088]
[1718608663488,0.61594638,66026.0,66025.0,1.99458987]
[1718608663703,0.61594638,66026.0,66025.0,1.69167487]
[1718608664349,0.6057714,66026.0,66025.0,1.69167487]
[1718608664573,0.6057714,66026.0,66025.0,2.09458987]
[1718608664777,0.61594798,66026.0,66025.0,1.79167487]
[1718608665212,0.61594798,66026.0,66025.0,1.74167487]
[1718608665423,0.61594798,66026.0,66025.0,1.79167487]
[1718608666275,0.61594798,66026.0,66025.0,1.74167487]
[1718608666488,0.61594798,66026.0,66025.0,1.79167487]
[1718608666705,0.6057714,66026.0,66025.0,2.09458987]
[1718608667141,0.61595545,66026.0,66025.0,2.09458987]
[1718608668889,0.61595545,66026.0,66025.0,2.13989679]
[1718608669066,0.61595545,66026.0,66025.0,2.09458987]
[1718608671935,0.61595545,66026.0,66025.0,2.29458987]
[1718608672145,0.6057714,66026.0,66025.0,2.33989679]
[1718608672350,0.6057714,66026.0,66025.0,2.38555025]
[1718608672949,0.6057714,66026.0,66025.0,2.31758987]
[1718608673108,0.6057714,66026.0,66025.0,2.31358987]
[1718608673310,0.6047714,66026.0,66025.0,2.61650487]
[1718608673538,0.6057714,66026.0,66025.0,2.32758987]
[1718608673695,0.6067714,66026.0,66025.0,2.43220371]
[1718608674108,0.59008256,66026.0,66025.0,2.43220371]
[1718608675363,0.13946061,66026.0,66025.0,2.34158987]
[1718608675574,0.13946061,66026.0,66025.0,2.5253595]
[1718608675786,0.00939401,66039.0,66038.0,0.75750119]
[1718608676011,0.00939401,66039.0,66038.0,1.34866884]
[1718608677290,0.00939401,66039.0,66038.0,1.65152384]
[1718608677503,0.01039401,66039.0,66038.0,1.35766884]
[1718608677934,0.01039401,66039.0,66038.0,1.30766884]
[1718608678149,0.01039401,66039.0,66038.0,1.35730465]
[1718608679397,0.01039401,66039.0,66038.0,1.36406471]
[1718608679526,0.01039401,66039.0,66038.0,1.37206471]
[1718608680581,0.01039401,66039.0,66038.0,1.06920971]
[1718608680810,0.01039401,66039.0,66038.0,0.61492771]
[1718608681029,0.01039401,66039.0,66038.0,0.76635471]
[1718608681487,0.01039401,66039.0,66038.0,1.06920971]
[1718608682123,0.01039401,66039.0,66038.0,1.37206471]
[1718608682761,0.01039401,66039.0,66038.0,0.76635471]
[1718608682983,0.01039401,66039.0,66038.0,1.06920971]
[1718608683198,0.02060879,66039.0,66038.0,0.98002066]
[1718608683628,0.02060879,66039.0,66038.0,1.28287566]
[1718608683872,0.01039401,66039.0,66038.0,1.37442856]
[1718608684288,0.01039401,66039.0,66038.0,1.07120937]
[1718608685369,0.01039401,66039.0,66038.0,0.76835437]
[1718608685585,0.01039401,66039.0,66038.0,0.61692737]
[1718608685809,0.01039401,66039.0,66038.0,0.41618798]
[1718608686016,0.01039401,66039.0,66038.0,0.11410019]
[1718608686275,0.02003994,66039.0,66038.0,0.03484932]
[1718608686943,0.37077575,66039.0,66038.0,0.03484932]
[1718608687161,0.61896494,66039.0,66038.0,0.03484932]
[1718608687368,0.61896494,66039.0,66038.0,0.017]
[1718608687599,0.56717575,66039.0,66038.0,0.017]
[1718608687822,0.71860075,66039.0,66038.0,0.017]
[1718608688039,0.46753994,66039.0,66038.0,0.017]
[1718608688244,0.56617575,66039.0,66038.0,0.008]
[1718608688467,0.5859487,66039.0,66038.0,0.008]
[1718608688681,0.7373737,66039.0,66038.0,0.008]
[1718608688892,0.151428,66038.0,66031.0,0.1774]
[1718608689116,0.8887997,66039.0,66031.0,0.1774]
[1718608689117,0.11940876,66033.0,66032.0,0.01774]
[1718608689336,0.09963581,66032.0,66031.0,0.01868926]
[1718608689556,0.09963581,66032.0,66029.0,0.1]
[1718608689557,0.00963676,66032.0,66029.0,0.1]
[1718608689767,0.09963581,66035.0,66030.0,0.05]
[1718608690228,0.00963796,66034.0,66031.0,0.004]
[1718608690454,0.00963796,66034.0,66032.0,0.04434878]
[1718608690455,0.10927377,66034.0,66032.0,0.04434878]
[1718608690678,0.27084776,66033.0,66032.0,0.001]
[1718608690897,1.03502576,66033.0,66032.0,0.001]
[1718608691118,1.34754112,66033.0,66032.0,0.001]
[1718608691343,1.65041912,66033.0,66032.0,0.001]
[1718608691788,1.66041912,66033.0,66032.0,0.001]
[1718608692011,1.66041912,66033.0,66014.0,0.4787]
[1718608692012,0.4622,66019.0,66014.0,0.4787]
[1718608692220,0.4622,66019.0,66015.0,0.5168916]
[1718608692445,0.4622,66019.0,66015.0,0.06062824]
[1718608692875,0.00959722,66018.0,66015.0,0.06062824]
[1718608693307,0.00959722,66018.0,66015.0,0.06862824]
[1718608693513,0.00959722,66018.0,66016.0,0.04397421]
[1718608693728,0.4585,66024.0,66016.0,0.27948779]
[1718608694027,0.4585,66024.0,66023.0,0.151462]
[1718608694264,0.4585,66024.0,66020.0,0.1274]
[1718608694477,0.4585,66024.0,66021.0,0.00605783]
[1718608694912,0.09963581,66033.0,66021.0,0.00605783]
[1718608695139,0.56393581,66035.0,66027.0,0.1274]
[1718608695356,0.56393581,66035.0,66028.0,0.00605698]
[1718608695586,0.56393581,66035.0,66027.0,0.1274]
[1718608695813,0.071,66034.0,66028.0,0.00605706]
[1718608696019,0.071,66034.0,66030.0,0.151445]
[1718608696224,0.071,66034.0,66031.0,0.00605709]
[1718608698420,0.071,66034.0,66029.0,0.04363761]
[1718608698626,0.072,66034.0,66031.0,0.001]
[1718608698847,0.072,66034.0,66032.0,0.03234816]
[1718608699082,0.072,66034.0,66031.0,0.0070571]
[1718608699704,0.072,66034.0,66031.0,0.0080571]
[1718608700191,0.17163581,66034.0,66031.0,0.001]
[1718608700637,0.072,66034.0,66031.0,0.001]
[1718608700845,0.072,66034.0,66031.0,0.01384]
[1718608701510,0.071,66034.0,66031.0,0.01284]
[1718608701974,0.072,66034.0,66031.0,0.01284]
[1718608703466,0.2476797,66034.0,66031.0,0.01284]
[1718608703677,0.09963581,66033.0,66031.0,0.01284]
[1718608703897,0.071,66032.0,66031.0,0.01284]
[1718608705037,0.071,66032.0,66031.0,0.164284]
[1718608705251,0.071,66032.0,66031.0,0.467172]
[1718608705486,0.071,66032.0,66031.0,0.164284]
[1718608705925,0.071,66032.0,66031.0,0.01284]
[1718608706145,0.5271,66032.0,66031.0,0.01284]
[1718608706356,0.53607211,66032.0,66031.0,0.01284]
[1718608706775,0.53707211,66032.0,66031.0,0.01284]
[1718608707424,0.53707211,66032.0,66031.0,0.164284]
[1718608707844,0.53707211,66032.0,66031.0,0.01284]
[1718608710813,0.63670792,66032.0,66031.0,0.01284]
[1718608713705,0.09963581,66027.0,66026.0,0.00085]
[1718608713939,0.64833581,66027.0,66026.0,0.00085]
[1718608714160,0.67691511,66027.0,66026.0,0.00085]
[1718608715081,0.65714216,66027.0,66026.0,0.00085]
[1718608715314,0.55750635,66027.0,66026.0,0.00085]
[1718608715561,0.65714216,66027.0,66026.0,0.00085]
[1718608717869,0.55750635,66027.0,66026.0,0.00085]
[1718608719257,0.55732406,66027.0,66026.0,0.00085]
[1718608719534,0.65695987,66027.0,66026.0,0.00085]
[1718608719759,1.13109182,66027.0,66026.0,0.00085]
[1718608720212,1.58608561,66027.0,66026.0,0.00085]
[1718608720446,1.89899161,66027.0,66026.0,0.00085]
[1718608720735,1.99134506,66027.0,66026.0,0.00085]
[1718608721018,1.98134506,66027.0,66026.0,0.00085]
[1718608721251,1.67843906,66027.0,66026.0,0.00085]
[1718608721713,1.58708561,66027.0,66026.0,0.00185]
[1718608721969,0.67773282,66027.0,66026.0,0.00185]
[1718608722192,1.13209182,66027.0,66026.0,0.00185]
[1718608722414,1.43499782,66027.0,66026.0,0.00185]
[1718608722893,1.13209182,66027.0,66026.0,0.00285]
[1718608723109,0.67773282,66027.0,66026.0,0.00285]
[1718608723613,0.65795987,66027.0,66026.0,0.00285]
[1718608723848,0.18044216,66027.0,66026.0,0.00285]
[1718608724331,0.18044216,66027.0,66026.0,0.0182812]
[1718608724821,0.08080635,66027.0,66026.0,0.0182812]
[1718608725051,0.07980635,66027.0,66026.0,0.00185]
[1718608725517,0.07980635,66027.0,66026.0,0.00085]
[1718608725749,0.07980635,66027.0,66026.0,0.758125]
[1718608725973,0.07980635,66027.0,66026.0,0.91121279]
[1718608726190,0.071,66027.0,66026.0,0.91121279]
[1718608726415,0.071,66027.0,66026.0,0.60730279]
[1718608728488,0.071,66027.0,66026.0,0.60830279]
[1718608728727,0.071,66027.0,66026.0,0.96005665]
[1718608728970,0.071,66027.0,66026.0,0.96105665]
[1718608729182,0.071,66027.0,66026.0,1.05385789]
[1718608729404,0.071,66027.0,66026.0,0.75094789]
[1718608730066,0.071,66027.0,66026.0,0.65814665]
[1718608730499,0.071,66027.0,66026.0,0.78554665]
[1718608731797,0.071,66027.0,66026.0,0.93763444]
[1718608732299,0.071,66027.0,66026.0,1.03128075]
[1718608732512,0.071,66027.0,66026.0,1.33419075]
[1718608733829,0.071,66027.0,66026.0,1.03128075]
[1718608734048,0.071,66027.0,66026.0,1.33455494]
[1718608734835,0.071,66027.0,66026.0,1.63746494]
[1718608735054,0.071,66027.0,66026.0,1.78746494]
[1718608735273,0.07193501,66027.0,66026.0,2.29465635]
[1718608735485,0.07193501,66027.0,66026.0,1.94545494]
[1718608735672,0.07193501,66027.0,66026.0,1.95609075]
[1718608735816,0.07193501,66027.0,66026.0,1.95545494]
[1718608736032,0.07193501,66027.0,66026.0,1.94445494]
[1718608736246,0.07193501,66027.0,66026.0,2.25736494]
[1718608736869,0.07193501,66027.0,66026.0,2.30265635]
[1718608737074,0.07193501,66027.0,66026.0,2.25736494]
[1718608737299,0.07193501,66027.0,66026.0,2.30758961]
[1718608737459,0.07193501,66027.0,66026.0,2.34292289]
[1718608737651,0.07193501,66027.0,66026.0,2.29758961]
[1718608738044,0.07193501,66027.0,66026.0,2.32558961]
[1718608738254,0.07193501,66027.0,66026.0,2.31158961]
[1718608738451,0.07193501,66027.0,66026.0,2.29758961]
[1718608738728,0.07193501,66027.0,66026.0,2.32558961]
[1718608738936,0.07193501,66027.0,66026.0,2.35692289]
[1718608739365,0.07193501,66027.0,66026.0,2.34292289]
[1718608739561,0.07193501,66027.0,66026.0,2.28042289]
[1718608739785,0.07193501,66027.0,66026.0,2.29442289]
[1718608740617,0.07193501,66027.0,66026.0,0.62106936]
[1718608740839,0.07193501,66027.0,66026.0,0.20846484]
[1718608741067,0.63467082,66027.0,66026.0,0.01485]
[1718608741302,0.5430341,66027.0,66026.0,0.07975]
[1718608741517,0.5430341,66027.0,66026.0,0.06575]
[1718608741724,0.5430341,66027.0,66026.0,0.12086794]
[1718608742186,0.5430341,66027.0,66026.0,0.01485]
[1718608742418,0.64266991,66027.0,66026.0,0.05175]
[1718608742642,0.66244286,66027.0,66026.0,0.01185]
[1718608742855,0.66244286,66027.0,66026.0,0.02385]
[1718608743330,0.66244286,66027.0,66026.0,0.07475]
[1718608743542,0.66244286,66027.0,66026.0,0.02385]
[1718608744219,0.66244286,66027.0,66026.0,0.01185]
[1718608744673,0.64266991,66027.0,66026.0,0.00885]
[1718608745334,0.66244286,66027.0,66026.0,0.01585]
[1718608745802,0.64266991,66027.0,66026.0,0.01585]
[1718608746018,0.66244286,66027.0,66026.0,0.01585]
[1718608746252,0.64266991,66027.0,66026.0,0.01585]
[1718608746496,0.66244286,66027.0,66026.0,0.01585]
[1718608748681,0.96534886,66027.0,66026.0,0.01585]
[1718608749250,0.81389586,66027.0,66026.0,0.01585]
[1718608750076,0.81389586,66027.0,66026.0,0.00885]
[1718608750706,0.81389586,66027.0,66026.0,0.00085]
[1718608751444,0.81489586,66027.0,66026.0,0.00085]
[1718608752110,1.42070786,66027.0,66026.0,0.00085]
[1718608752335,1.11780186,66027.0,66026.0,0.00085]
[1718608752562,0.66344286,66027.0,66026.0,0.00085]
[1718608753213,0.79512291,66027.0,66026.0,0.00085]
[1718608753425,0.81489586,66027.0,66026.0,0.00085]
[1718608754935,0.66344286,66027.0,66026.0,0.00085]
[1718608755419,0.5440341,66027.0,66026.0,0.00085]
[1718608755646,0.66344286,66027.0,66026.0,0.00085]
[1718608756073,0.64366991,66027.0,66026.0,0.00085]
[1718608756322,0.0809341,66027.0,66026.0,0.00085]
[1718608756548,0.0809341,66027.0,66026.0,0.582415]
[1718608756761,0.0809341,66027.0,66026.0,0.71944406]
[1718608756969,0.07293501,66027.0,66026.0,0.41653406]
[1718608757183,0.07293501,66027.0,66026.0,0.26507906]
[1718608758014,0.07293501,66027.0,66026.0,0.71944406]
[1718608758905,0.07193501,66027.0,66026.0,0.71944406]
[1718608759116,0.07193501,66027.0,66026.0,0.42353406]
[1718608759554,0.07193501,66027.0,66026.0,0.42953406]
[1718608760627,0.07193501,66027.0,66026.0,0.01385]
[1718608761085,0.17954285,66027.0,66026.0,0.01385]
[1718608761951,0.17954285,66027.0,66026.0,0.00685]
[1718608762364,0.19134377,66027.0,66026.0,0.00685]
[1718608762612,0.07193501,66027.0,66026.0,0.00685]
[1718608762851,0.17954343,66027.0,66026.0,0.00085]
[1718608763019,0.18054343,66027.0,66026.0,0.00185]
[1718608763231,0.20031638,66027.0,66026.0,0.00185]
[1718608763703,0.20031638,66027.0,66026.0,0.00085]
[1718608764597,0.20031638,66027.0,66026.0,0.0154402]
[1718608765719,1.41348138,66027.0,66026.0,0.00085]
[1718608765948,0.20031638,66027.0,66026.0,0.05175]
[1718608766182,0.18054343,66027.0,66026.0,0.05175]
[1718608767288,0.18054343,66027.0,66026.0,0.0872183]
[1718608767739,0.20031638,66027.0,66026.0,0.05175]
[1718608768179,0.18054343,66027.0,66026.0,0.05175]
[1718608770959,0.53670762,66027.0,66026.0,0.00085]
[1718608771189,0.63634343,66027.0,66026.0,0.05175]
[1718608771595,0.65611638,66027.0,66026.0,0.05175]
[1718608771822,0.65611638,66027.0,66026.0,0.00085]
[1718608772060,1.11047538,66027.0,66026.0,0.00085]
[1718608772283,1.42470828,66027.0,66026.0,0.00085]
[1718608772937,1.12180228,66027.0,66026.0,0.00085]
[1718608773852,0.97034928,66027.0,66026.0,0.00085]
[1718608775040,1.27389007,66027.0,66026.0,0.00085]
[1718608775260,1.87970207,66027.0,66026.0,0.00085]
[1718608778890,0.97034928,66027.0,66026.0,0.05175]
[1718608779102,0.65611638,66027.0,66026.0,0.05175]
[1718608779759,0.65611638,66027.0,66026.0,0.0720714]
[1718608779980,0.65611638,66027.0,66026.0,0.05175]
[1718608782963,0.63634343,66027.0,66026.0,0.05175]
[1718608783192,1.26256317,66027.0,66026.0,0.00085]
[1718608783433,1.57679881,66027.0,66026.0,0.00085]
[1718608784748,1.12243981,66027.0,66026.0,0.00085]
[1718608785876,1.57679881,66027.0,66026.0,0.00085]
[1718608787711,1.12243981,66027.0,66026.0,0.00085]
[1718608787929,1.27389281,66027.0,66026.0,0.00085]
[1718608791596,0.97035202,66027.0,66026.0,0.00085]
[1718608792222,1.12180502,66027.0,66026.0,0.00085]
[1718608793063,1.12180502,66027.0,66026.0,0.000563]
[1718608795566,1.99813995,66027.0,66026.0,0.000563]
[1718608795788,2.35194595,66027.0,66026.0,0.000563]
[1718608796239,2.39697606,66027.0,66026.0,0.000563]
[1718608796701,2.39597606,66027.0,66026.0,0.000563]
[1718608797116,2.39697606,66027.0,66026.0,0.000563]
[1718608797332,2.41950671,66027.0,66026.0,0.000563]
[1718608797764,2.40950671,66027.0,66026.0,0.000563]
[1718608797987,2.39696785,66027.0,66026.0,0.000563]
[1718608798838,2.396697,66027.0,66026.0,0.000563]
[1718608800120,2.345797,66027.0,66026.0,0.000563]
[1718608800341,2.30078045,66027.0,66026.0,0.000563]
[1718608801208,2.82329907,66027.0,66026.0,0.000563]
[1718608801470,2.97419907,66027.0,66026.0,0.000563]
[1718608801711,3.18032211,66027.0,66026.0,0.000563]
[1718608802573,3.17932211,66027.0,66026.0,0.001563]
[1718608802798,3.18132211,66027.0,66026.0,0.002563]
[1718608803473,2.75558645,66027.0,66026.0,0.002563]
[1718608803696,3.1812908,66027.0,66026.0,0.002563]
[1718608804553,2.86705516,66027.0,66026.0,0.002563]
[1718608804772,3.18136157,66027.0,66026.0,0.002563]
[1718608805452,3.28136157,66027.0,66026.0,0.002563]
[1718608805681,3.19136887,66027.0,66026.0,0.002563]
[1718608806119,3.5546647,66027.0,66026.0,0.002563]
[1718608806333,3.18939671,66027.0,66026.0,0.002563]
[1718608806553,3.08939671,66027.0,66026.0,0.002563]
[1718608806757,3.20188385,66027.0,66026.0,0.002563]
[1718608806985,3.08939671,66027.0,66026.0,0.002563]
[1718608807417,3.18939671,66027.0,66026.0,0.002563]
[1718608807822,3.08939671,66027.0,66026.0,0.002563]
[1718608808047,3.07318675,66027.0,66026.0,0.002563]
[1718608808289,2.87063651,66027.0,66026.0,0.002563]
[1718608808526,2.44493734,66027.0,66026.0,0.002563]
[1718608808745,2.51242324,66027.0,66026.0,0.002563]
[1718608808962,2.44493734,66027.0,66026.0,0.002563]
[1718608809421,2.78064522,66027.0,66026.0,0.002563]
[1718608809643,2.44493734,66027.0,66026.0,0.002563]
[1718608809864,2.78064544,66027.0,66026.0,0.002563]
[1718608810326,2.78064531,66027.0,66026.0,0.002563]
[1718608810540,2.44493734,66027.0,66026.0,0.002563]
[1718608811176,2.39403734,66027.0,66026.0,0.002563]
[1718608811377,1.78822534,66027.0,66026.0,0.002563]
[1718608811814,2.12593877,66027.0,66026.0,0.002563]
[1718608812016,2.02558301,66027.0,66026.0,0.002563]
[1718608812232,2.43877148,66027.0,66026.0,0.002563]
[1718608812660,2.12586548,66027.0,66026.0,0.002563]
[1718608812887,1.82295948,66027.0,66026.0,0.002563]
[1718608813088,2.12586548,66027.0,66026.0,0.002563]
[1718608813314,1.82295948,66027.0,66026.0,0.002563]
[1718608813744,2.13586548,66027.0,66026.0,0.002563]
[1718608814369,2.91946987,66027.0,66026.0,0.002563]
[1718608814580,2.82948566,66027.0,66026.0,0.002563]
[1718608814991,2.94196592,66027.0,66026.0,0.002563]
[1718608816082,2.96567481,66027.0,66026.0,0.002563]
[1718608816775,3.52222834,66027.0,66026.0,0.002563]
[1718608817012,4.12265383,66027.0,66026.0,0.002563]
[1718608817256,4.89702238,66027.0,66026.0,0.002563]
[1718608817470,4.59411638,66027.0,66026.0,0.002563]
[1718608817892,4.59411638,66027.0,66026.0,0.001563]
[1718608818125,4.60811638,66027.0,66026.0,0.002563]
[1718608818338,4.608936,66027.0,66026.0,0.002563]
[1718608818768,4.44084821,66027.0,66026.0,0.000563]
[1718608818983,4.44084821,66027.0,66026.0,0.001563]
[1718608818984,4.10564972,66027.0,66026.0,0.001563]
[1718608819194,4.11964972,66027.0,66026.0,0.001563]
[1718608819416,3.98477127,66027.0,66026.0,0.001563]
[1718608819671,4.12285906,66027.0,66026.0,0.000563]
[1718608819895,4.12285906,66027.0,66026.0,0.001563]
[1718608819896,5.06944089,66027.0,66026.0,0.001563]
[1718608820118,4.99630953,66027.0,66026.0,0.001563]
[1718608820385,0.57395976,65999.0,65998.0,0.2058]
[1718608820600,0.64477748,65999.0,65998.0,0.2058]
[1718608820827,0.19022648,65999.0,65998.0,0.2058]
[1718608821042,0.19800364,65999.0,65998.0,0.2058]
[1718608821701,0.17823069,65999.0,65998.0,0.2058]
[1718608821910,0.07859488,65999.0,65998.0,0.25214]
[1718608822162,0.20000364,65999.0,65998.0,0.25214]
[1718608822787,0.08059488,65999.0,65998.0,0.25214]
[1718608823225,0.20000364,65999.0,65998.0,0.25214]
[1718608823483,0.20200364,65999.0,65998.0,0.2058]
[1718608824126,0.08259488,65999.0,65998.0,0.2058]
[1718608824346,0.08259488,65999.0,65998.0,0.656819]
[1718608824572,0.07481772,65999.0,65998.0,1.262897]
[1718608824803,0.07481772,65999.0,65998.0,0.959858]
[1718608825032,0.07481772,65999.0,65998.0,1.08654831]
[1718608825271,0.07481772,65999.0,65998.0,1.03528412]
[1718608825504,0.07481772,65999.0,65998.0,1.08618412]
[1718608825729,0.07481772,65999.0,65998.0,1.08654831]
[1718608825943,0.07281772,65999.0,65998.0,1.08618412]
[1718608826607,0.07281772,65999.0,65998.0,1.8447141]
[1718608826849,0.07181772,65999.0,65998.0,1.93658085]
[1718608827076,0.07281772,65999.0,65998.0,1.64017766]
[1718608827321,0.07281772,65999.0,65998.0,1.64054185]
[1718608827557,0.07181772,65999.0,65998.0,1.70994185]
[1718608827998,0.07281772,65999.0,65998.0,1.71794185]
[1718608828219,0.07081772,65999.0,65998.0,1.70294185]
[1718608828446,0.07604389,66025.0,66021.0,0.151466]
[1718608828670,0.45626336,66022.0,66019.0,0.4583]
[1718608828877,0.10741465,66024.0,66019.0,0.4583]
[1718608829095,0.00777777,66021.0,66019.0,0.4583]
[1718608829356,0.09963581,66024.0,66019.0,0.4583]
[1718608829590,0.01977295,66026.0,66019.0,0.4583]
[1718608829591,0.00093501,66026.0,66024.0,0.151459]
[1718608829843,0.00093501,66026.0,66021.0,0.356565]
[1718608830051,0.00093501,66026.0,66021.0,0.2051]
[1718608830271,0.09963581,66024.0,66021.0,0.2051]
[1718608830475,0.1756797,66025.0,66022.0,0.04750165]
[1718608830683,0.00777906,66024.0,66022.0,0.04750165]
[1718608830902,0.10741487,66024.0,66022.0,0.04750165]
[1718608831151,0.09963581,66023.0,66022.0,0.04750165]
[1718608831369,0.007798,66023.0,66022.0,0.04750165]
[1718608831570,0.07604389,66025.0,66022.0,0.04750165]
[1718608831777,0.004,66024.0,66023.0,0.04583]
[1718608832188,0.09963581,66024.0,66023.0,0.04583]
[1718608832844,0.11940876,66024.0,66023.0,0.04583]
[1718608833258,0.07604389,66025.0,66023.0,0.04583]
[1718608833458,0.07604389,66025.0,66024.0,0.050523]
[1718608833663,0.1756797,66025.0,66024.0,0.050523]
[1718608833873,0.07604389,66025.0,66024.0,0.050523]
[1718608834648,0.00093501,66026.0,66024.0,0.050523]
[1718608835043,0.01,66025.0,66024.0,0.051523]
[1718608835263,0.019,66025.0,66024.0,0.051523]
[1718608835868,0.01,66025.0,66024.0,0.051523]
[1718608836080,0.01,66025.0,66024.0,0.052523]
[1718608836731,0.01,66025.0,66024.0,0.051523]
[1718608838303,0.12940876,66025.0,66024.0,0.051523]
[1718608838772,0.12940876,66025.0,66024.0,0.001]
[1718608838773,0.44168971,66025.0,66024.0,0.001]
[1718608838995,0.90606171,66025.0,66024.0,0.002]
[1718608839459,0.60314671,66025.0,66024.0,0.002]
[1718608839687,1.3610645,66025.0,66024.0,0.002]
[1718608839900,1.3710645,66025.0,66024.0,0.002]
[1718608840576,1.7853453,66025.0,66024.0,0.002]
[1718608840794,2.2528453,66025.0,66024.0,0.002]
[1718608841475,2.42217531,66025.0,66024.0,0.002]
[1718608842775,2.39969365,66025.0,66024.0,0.002]
[1718608842987,2.35476567,66025.0,66024.0,0.002]
[1718608843227,2.2528453,66025.0,66024.0,0.002]
[1718608843441,2.35512663,66025.0,66024.0,0.002]
[1718608843649,2.40005461,66025.0,66024.0,0.002]
[1718608843875,2.35512663,66025.0,66024.0,0.002]
[1718608844094,2.35517514,66025.0,66024.0,0.002]
[1718608844303,2.40010269,66025.0,66024.0,0.002]
[1718608844768,2.40036488,66025.0,66024.0,0.002]
[1718608845002,2.4003643,66025.0,66024.0,0.002]
[1718608845228,2.35543719,66025.0,66024.0,0.002]
[1718608845902,2.4003643,66025.0,66024.0,0.002]
[1718608846389,2.35543719,66025.0,66024.0,0.002]
[1718608847066,2.65835219,66025.0,66024.0,0.002]
[1718608847968,0.81773519,66025.0,66024.0,0.002]
[1718608848202,1.27210719,66025.0,66024.0,0.002]
[1718608848425,1.16956381,66025.0,66024.0,0.002]
[1718608848644,1.5485227,66025.0,66024.0,0.002]
[1718608848854,1.5585227,66025.0,66024.0,0.002]
[1718608849513,1.55848621,66025.0,66024.0,0.002]
[1718608849744,1.86140121,66025.0,66024.0,0.002]
[1718608850185,1.96403016,66025.0,66024.0,0.002]
[1718608851314,1.95403016,66025.0,66024.0,0.002]
[1718608851750,1.96403016,66025.0,66024.0,0.002]
[1718608853300,0.81778427,66025.0,66024.0,0.002]
[1718608853525,0.96924127,66025.0,66024.0,0.002]
[1718608853744,1.88798627,66025.0,66024.0,0.002]
[1718608854026,1.57507127,66025.0,66024.0,0.002]
[1718608854267,1.27215627,66025.0,66024.0,0.002]
[1718608854497,0.81778427,66025.0,66024.0,0.002]
[1718608854737,0.96924127,66025.0,66024.0,0.002]
[1718608855348,1.27215627,66025.0,66024.0,0.002]
[1718608855777,1.27474122,66025.0,66024.0,0.002]
[1718608856460,1.57765622,66025.0,66024.0,0.002]
[1718608857535,0.97182622,66025.0,66024.0,0.002]
[1718608857787,0.95205327,66025.0,66024.0,0.002]
[1718608858013,0.86661232,66025.0,66024.0,0.002]
[1718608858229,0.71515532,66025.0,66024.0,0.002]
[1718608858445,0.94265621,66025.0,66024.0,0.002]
[1718608858677,0.92288326,66025.0,66024.0,0.002]
[1718608858918,0.94265621,66025.0,66024.0,0.002]
[1718608859555,1.24557121,66025.0,66024.0,0.002]
[1718608860432,1.6536193,66025.0,66024.0,0.002]
[1718608860639,1.3507043,66025.0,66024.0,0.002]
[1718608861101,0.8963323,66025.0,66024.0,0.002]
[1718608861310,0.79119921,66025.0,66024.0,0.002]
[1718608861793,0.77142626,66025.0,66024.0,0.002]
[1718608862006,0.79119921,66025.0,66024.0,0.002]
[1718608862474,0.77142626,66025.0,66024.0,0.002]
[1718608863148,0.61933847,66025.0,66024.0,0.002]
[1718608863811,0.63911142,66025.0,66024.0,0.002]
[1718608864044,0.51970266,66025.0,66024.0,0.002]
[1718608864260,0.10540984,66025.0,66024.0,0.002]
[1718608864480,0.20504565,66025.0,66024.0,0.002]
[1718608865143,0.2248186,66025.0,66024.0,0.002]
[1718608865571,0.22575361,66025.0,66024.0,0.002]
[1718608866004,0.20598066,66025.0,66024.0,0.002]
[1718608866717,0.03030096,66025.0,66024.0,0.002]
[1718608866941,0.03030096,66025.0,66024.0,0.7136798]
[1718608867180,0.02093501,66025.0,66024.0,0.7136798]
[1718608867880,0.02093501,66025.0,66024.0,0.5622198]
[1718608868326,0.01093501,66025.0,66024.0,1.0155998]
[1718608869488,0.01093501,66025.0,66024.0,0.7156798]
[1718608869715,0.00093501,66025.0,66024.0,0.7146798]
[1718608871355,0.00093501,66025.0,66024.0,0.7186798]
[1718608872731,0.00093501,66025.0,66024.0,1.0215998]
[1718608875098,0.00093501,66025.0,66024.0,1.3245198]
[1718608875321,0.00093501,66025.0,66024.0,1.0215998]
[1718608875540,0.00093501,66025.0,66024.0,1.3245198]
[1718608877091,0.00093501,66025.0,66024.0,1.0215998]
[1718608877316,0.00093501,66025.0,66024.0,1.1488998]
[1718608878201,0.00093501,66025.0,66024.0,1.4518198]
[1718608879159,0.00093501,66025.0,66024.0,1.45218399]
[1718608879656,0.00093501,66025.0,66024.0,1.4518198]
[1718608879882,0.00093501,66025.0,66024.0,1.7547398]
[1718608880110,0.00093501,66025.0,66024.0,1.4518198]
[1718608881962,0.00093501,66025.0,66024.0,1.45218399]
[1718608882195,0.00093501,66025.0,66024.0,1.4518198]
[1718608882628,0.00093501,66025.0,66024.0,1.45218399]
[1718608882804,0.00093501,66025.0,66024.0,1.47075148]
[1718608883533,0.00093501,66025.0,66024.0,1.34345148]
[1718608883772,0.00093501,66025.0,66024.0,1.39435148]
[1718608883992,0.00093501,66025.0,66024.0,1.47585719]
[1718608884243,0.00093501,66025.0,66024.0,1.77877719]
[1718608884739,0.00093501,66025.0,66024.0,1.420593]
[1718608884973,0.00093501,66025.0,66024.0,1.38698729]
[1718608885469,0.00193501,66025.0,66024.0,1.39798729]
[1718608885710,0.00193501,66025.0,66024.0,1.47428729]
[1718608886376,0.00193501,66025.0,66024.0,1.47465148]
[1718608886594,0.00193501,66025.0,66024.0,1.92965927]
[1718608886806,0.00293501,66025.0,66024.0,2.02463682]
[1718608888043,0.00293501,66025.0,66024.0,1.94265927]
[1718608888271,0.00293501,66025.0,66024.0,2.02369645]
[1718608888736,0.00293501,66025.0,66024.0,2.07369645]
[1718608890565,0.00293501,66025.0,66024.0,2.09649645]
[1718608890780,0.00293501,66025.0,66024.0,2.22369645]
[1718608891907,0.00293501,66025.0,66024.0,2.09649645]
[1718608892124,0.00293501,66025.0,66024.0,2.22369645]
[1718608895237,0.00293501,66025.0,66024.0,2.14265927]
[1718608895667,0.00293501,66025.0,66024.0,2.22521757]
[1718608896305,0.00293501,66025.0,66024.0,2.14265927]
[1718608896531,0.00293501,66025.0,66024.0,2.01509508]
[1718608896775,0.00293501,66025.0,66024.0,2.14265927]
[1718608898219,0.00293501,66025.0,66024.0,2.22538287]